bitfinex/quotes_BTCUSD_20241013
["timestamp","ask_amount","ask_price","bid_price","bid_amount"]
[1728778364795,0.0257386,63342.0,63341.0,0.43717808]
[1728778365021,0.0257386,63342.0,63341.0,0.42517808]
[1728778365509,0.0267386,63342.0,63341.0,0.61877808]
[1728778366184,0.0267386,63342.0,63341.0,0.63277808]
[1728778366861,0.0267386,63342.0,63341.0,0.62486685]
[1728778367078,0.0267386,63342.0,63341.0,0.63277684]
[1728778368943,0.0267386,63342.0,63341.0,0.73176568]
[1728778370085,0.0267386,63342.0,63341.0,0.76342568]
[1728778370762,0.0267386,63342.0,63341.0,0.78642568]
[1728778371214,0.0267386,63342.0,63341.0,0.72487591]
[1728778374431,0.0267386,63342.0,63341.0,0.72981957]
[1728778378143,0.0267386,63342.0,63341.0,0.72981965]
[1728778380400,0.0267386,63342.0,63341.0,0.72981962]
[1728778381107,0.0267386,63342.0,63341.0,0.71696592]
[1728778381327,0.0267386,63342.0,63341.0,0.72487589]
[1728778381561,0.0267386,63342.0,63341.0,0.72981962]
[1728778382292,0.0267386,63342.0,63341.0,0.69815962]
[1728778385391,0.0267386,63342.0,63341.0,0.70804708]
[1728778388276,0.0267386,63342.0,63341.0,0.68530592]
[1728778388506,0.0267386,63342.0,63341.0,0.69815975]
[1728778388725,0.0267386,63342.0,63341.0,0.70804731]
[1728778390540,0.0267386,63342.0,63341.0,0.24505546]
[1728778390776,0.0267386,63342.0,63341.0,0.2351679]
[1728778390994,0.1182386,63342.0,63341.0,0.2351679]
[1728778391939,0.2007386,63342.0,63341.0,0.06443907]
[1728778392165,0.1987386,63342.0,63341.0,0.20025863]
[1728778392437,0.2003806,63342.0,63341.0,0.04238363]
[1728778392666,0.2013806,63342.0,63341.0,0.05438363]
[1728778392890,0.2013806,63342.0,63341.0,0.04238363]
[1728778393122,0.2023806,63342.0,63341.0,0.05438363]
[1728778393333,0.2023806,63342.0,63341.0,0.21225863]
[1728778393551,0.2023806,63342.0,63341.0,0.22625863]
[1728778394015,0.2023806,63342.0,63341.0,0.21225863]
[1728778394241,0.2023806,63342.0,63341.0,0.05438363]
[1728778394484,0.2023806,63342.0,63341.0,0.06538363]
[1728778395612,0.3651396,63342.0,63341.0,0.06538363]
[1728778395834,0.3651396,63342.0,63341.0,0.023821]
[1728778399410,0.3651396,63342.0,63341.0,0.06080026]
[1728778399645,0.3651396,63342.0,63341.0,0.023821]
[1728778400108,0.3651396,63342.0,63341.0,0.06080026]
[1728778400335,0.3651396,63342.0,63341.0,0.023821]
[1728778400556,0.3651396,63342.0,63341.0,0.06080026]
[1728778400767,0.3651396,63342.0,63341.0,0.023821]
[1728778401008,0.3651396,63342.0,63341.0,0.06080026]
[1728778401236,0.3651396,63342.0,63341.0,0.023821]
[1728778401687,0.3651396,63342.0,63341.0,0.06080026]
[1728778401917,0.3651396,63342.0,63341.0,0.023821]
[1728778402117,0.3651396,63342.0,63341.0,0.06080026]
[1728778402347,0.3651396,63342.0,63341.0,0.023821]
[1728778402563,0.3651396,63342.0,63341.0,0.06080026]
[1728778402779,0.3651396,63342.0,63341.0,0.023821]
[1728778402988,0.3651396,63342.0,63341.0,0.06080026]
[1728778403238,0.3651396,63342.0,63341.0,0.023821]
[1728778403913,0.37989615,63342.0,63341.0,0.023821]
[1728778406216,0.52589264,63342.0,63341.0,0.023821]
[1728778406741,0.37989615,63342.0,63341.0,0.023821]
[1728778406977,0.5521861,63342.0,63341.0,0.011821]
[1728778407205,0.37889615,63342.0,63341.0,0.009821]
[1728778407436,0.64759032,63342.0,63341.0,0.017821]
[1728778407875,0.64759032,63342.0,63341.0,0.009821]
[1728778408308,0.64759032,63342.0,63341.0,0.000821]
[1728778408309,0.64659032,63342.0,63341.0,0.000821]
[1728778408750,0.64859032,63342.0,63341.0,0.000821]
[1728778409620,0.55415829,63342.0,63341.0,0.000821]
[1728778409843,0.56215829,63342.0,63341.0,0.000821]
[1728778410317,0.55910028,63342.0,63341.0,0.000821]
[1728778410529,0.56410028,63342.0,63341.0,0.000821]
[1728778411207,0.38989615,63342.0,63341.0,0.000821]
[1728778412296,0.46067054,63342.0,63341.0,0.000821]
[1728778412996,0.3751396,63342.0,63341.0,0.000821]
[1728778413227,0.42116757,63342.0,63341.0,0.000821]
[1728778413456,0.52455024,63342.0,63341.0,0.000821]
[1728778413703,0.54928802,63342.0,63341.0,0.000821]
[1728778414190,0.37513878,63342.0,63341.0,0.000821]
[1728778414412,0.44589977,63342.0,63341.0,0.000821]
[1728778420822,0.42116199,63342.0,63341.0,0.000821]
[1728778421057,0.350401,63342.0,63341.0,0.000821]
[1728778421318,0.018528,63342.0,63341.0,0.09898884]
[1728778421768,0.018528,63342.0,63341.0,0.13788788]
[1728778422006,0.02130885,63342.0,63341.0,0.13788788]
[1728778422460,0.02130885,63342.0,63341.0,0.13888788]
[1728778422678,0.17918185,63342.0,63341.0,0.04072004]
[1728778422930,0.25799592,63342.0,63341.0,0.001821]
[1728778423150,0.42499592,63342.0,63341.0,0.001821]
[1728778423878,0.49690343,63342.0,63341.0,0.001821]
[1728778424099,0.48212258,63342.0,63341.0,0.001821]
[1728778425032,0.40330851,63342.0,63341.0,0.001821]
[1728778427470,0.35613829,63342.0,63341.0,0.001821]
[1728778429277,0.42689928,63342.0,63341.0,0.001821]
[1728778430720,0.35613829,63342.0,63341.0,0.001821]
[1728778430959,0.4269694,63342.0,63341.0,0.001821]
[1728778431190,0.53047975,63342.0,63341.0,0.001821]
[1728778431694,0.35613829,63342.0,63341.0,0.001821]
[1728778431926,0.42697948,63342.0,63341.0,0.001821]
[1728778432183,0.10210648,63342.0,63341.0,0.001821]
[1728778432420,0.03126529,63342.0,63341.0,0.03431123]
[1728778433115,0.07850661,63342.0,63341.0,0.03431123]
[1728778433347,0.03126529,63342.0,63341.0,0.03431123]
[1728778433595,0.18913829,63342.0,63341.0,0.03431123]
[1728778434303,0.25999445,63342.0,63341.0,0.03431123]
[1728778434988,0.23525716,63342.0,63341.0,0.03431123]
[1728778435220,0.43329332,63342.0,63341.0,0.03431123]
[1728778435448,0.43329332,63342.0,63341.0,0.001821]
[1728778436221,0.33893874,63342.0,63341.0,0.001821]
[1728778437152,0.45688196,63342.0,63341.0,0.001821]
[1728778437828,0.4816188,63342.0,63341.0,0.001821]
[1728778438293,0.36385269,63342.0,63341.0,0.001821]
[1728778438522,0.36385269,63342.0,63341.0,0.0343172]
[1728778438787,0.36385269,63342.0,63341.0,0.001821]
[1728778439015,0.36385269,63342.0,63341.0,0.0343172]
[1728778439233,0.36385269,63342.0,63341.0,0.001821]
[1728778439467,0.36385269,63342.0,63341.0,0.0343172]
[1728778439679,0.36385269,63342.0,63341.0,0.001821]
[1728778439919,0.36385269,63342.0,63341.0,0.0343172]
[1728778440127,0.36385269,63342.0,63341.0,0.001821]
[1728778440348,0.36385269,63342.0,63341.0,0.0343172]
[1728778440581,0.33911585,63342.0,63341.0,0.001821]
[1728778440815,0.33911585,63342.0,63341.0,0.0343172]
[1728778441042,0.33911585,63342.0,63341.0,0.001821]
[1728778441491,0.164401,63342.0,63341.0,0.001821]
[1728778441706,0.33919887,63342.0,63341.0,0.001821]
[1728778441943,0.51519887,63342.0,63341.0,0.001821]
[1728778443625,0.53993601,63342.0,63341.0,0.001821]
[1728778444130,0.5399541,63342.0,63341.0,0.001821]
[1728778444602,0.63812194,63342.0,63341.0,0.001821]
[1728778444837,0.79949165,63342.0,63341.0,0.001821]
[1728778448527,0.77475451,63342.0,63341.0,0.001821]
[1728778449667,0.87975451,63342.0,63341.0,0.001821]
[1728778450128,0.7183848,63342.0,63341.0,0.001821]
[1728778451012,0.7184213,63342.0,63341.0,0.001821]
[1728778451957,0.74315963,63342.0,63341.0,0.001821]
[1728778456592,0.74315209,63342.0,63341.0,0.001821]
[1728778457511,0.71841376,63342.0,63341.0,0.001821]
[1728778459833,0.73321204,63342.0,63341.0,0.001821]
[1728778460575,0.845241,63342.0,63341.0,0.001821]
[1728778463185,0.75795063,63342.0,63341.0,0.001821]
[1728778463414,0.65978279,63342.0,63341.0,0.001821]
[1728778467602,0.6350442,63342.0,63341.0,0.001821]
[1728778469865,0.63505371,63342.0,63341.0,0.001821]
[1728778470302,0.65979164,63342.0,63341.0,0.001821]
[1728778475307,0.65977559,63342.0,63341.0,0.001821]
[1728778476914,0.65477559,63342.0,63341.0,0.001821]
[1728778477389,0.63003766,63342.0,63341.0,0.001821]
[1728778480140,0.63005576,63342.0,63341.0,0.001821]
[1728778480357,0.6547937,63342.0,63341.0,0.001821]
[1728778481602,0.63005576,63342.0,63341.0,0.001821]
[1728778484836,0.65479386,63342.0,63341.0,0.001821]
[1728778487530,0.63005576,63342.0,63341.0,0.001821]
[1728778488234,0.63006469,63342.0,63341.0,0.001821]
[1728778490558,0.65480293,63342.0,63341.0,0.001821]
[1728778491345,0.75297077,63342.0,63341.0,0.001821]
[1728778491550,0.91283085,63342.0,63341.0,0.001821]
[1728778494519,0.91318318,63342.0,63341.0,0.001821]
[1728778495806,0.81501534,63342.0,63341.0,0.001821]
[1728778496023,0.81501764,63342.0,63341.0,0.001821]
[1728778497726,0.7902794,63342.0,63341.0,0.001821]
[1728778499520,0.79029275,63342.0,63341.0,0.001821]
[1728778499961,0.79029288,63342.0,63341.0,0.001821]
[1728778500653,0.81503079,63342.0,63341.0,0.001821]
[1728778507558,0.79029288,63342.0,63341.0,0.001821]
[1728778510612,0.81503082,63342.0,63341.0,0.001821]
[1728778514569,0.62169608,63342.0,63341.0,0.001821]
[1728778516637,0.58804889,63342.0,63341.0,0.001821]
[1728778516867,0.44575109,63342.0,63341.0,0.001821]
[1728778517105,0.43093194,63342.0,63341.0,0.001821]
[1728778517337,0.4457548,63342.0,63341.0,0.02957294]
[1728778517563,0.42101686,63342.0,63341.0,0.001821]
[1728778517815,0.28991586,63342.0,63341.0,0.001821]
[1728778518028,0.28991586,63342.0,63341.0,0.02961084]
[1728778518268,0.44778886,63342.0,63341.0,0.001821]
[1728778518494,0.44778886,63342.0,63341.0,0.02960374]
[1728778518700,0.41448886,63342.0,63341.0,0.001821]
[1728778518922,0.34943086,63342.0,63341.0,0.02960374]
[1728778520669,0.37416745,63342.0,63341.0,0.02960374]
[1728778521354,0.33476394,63342.0,63341.0,0.02960374]
[1728778521571,0.21622749,63342.0,63341.0,0.02960374]
[1728778522028,0.3347635,63342.0,63341.0,0.02960374]
[1728778524179,0.37410049,63342.0,63341.0,0.02960374]
[1728778524599,0.4926365,63342.0,63341.0,0.02960374]
[1728778524809,0.4926365,63342.0,63341.0,0.001821]
[1728778525458,0.3347635,63342.0,63341.0,0.001821]
[1728778526124,0.3347635,63342.0,63341.0,0.02960374]
[1728778526330,0.3347635,63342.0,63341.0,0.001821]
[1728778526544,0.3347635,63342.0,63341.0,0.02960374]
[1728778526723,0.4926365,63342.0,63341.0,0.02960374]
[1728778527206,0.46789991,63342.0,63341.0,0.02960374]
[1728778528036,0.46789991,63342.0,63341.0,0.001821]
[1728778528881,0.3493639,63342.0,63341.0,0.001821]
[1728778530004,0.3741007,63342.0,63341.0,0.001821]
[1728778531788,0.2162277,63342.0,63341.0,0.001821]
[1728778532303,0.3741007,63342.0,63341.0,0.001821]
[1728778532522,0.3741007,63342.0,63341.0,0.02957542]
[1728778532740,0.3741007,63342.0,63341.0,0.001821]
[1728778532971,0.3741007,63342.0,63341.0,0.02957542]
[1728778533618,0.2162277,63342.0,63341.0,0.02957542]
[1728778533843,0.2162277,63342.0,63341.0,0.18745042]
[1728778534308,0.2162277,63342.0,63341.0,0.35895042]
[1728778534309,0.33473449,63342.0,63341.0,0.35895042]
[1728778534515,0.33473449,63342.0,63341.0,0.36389548]
[1728778534516,0.04120166,63342.0,63341.0,0.36389548]
[1728778534741,0.0886039,63342.0,63341.0,0.3718068]
[1728778534967,0.04120166,63342.0,63341.0,0.3718068]
[1728778535407,0.04120166,63342.0,63341.0,0.36389548]
[1728778535644,0.04120166,63342.0,63341.0,0.36289548]
[1728778536129,0.04220166,63342.0,63341.0,0.3828068]
[1728778536364,0.0273788,63342.0,63341.0,0.37489548]
[1728778537050,0.0273788,63342.0,63341.0,0.3828068]
[1728778537459,0.002642,63342.0,63341.0,0.3958068]
[1728778538311,0.002642,63342.0,63341.0,0.38789548]
[1728778540698,0.02737629,63342.0,63341.0,0.38789548]
[1728778546499,0.02737629,63342.0,63341.0,0.3958068]
[1728778546725,0.02737629,63342.0,63341.0,0.30989548]
[1728778546954,0.02737629,63342.0,63341.0,0.30989503]
[1728778548871,0.02737629,63342.0,63339.0,0.000821]
[1728778549105,0.171,63340.0,63339.0,0.000821]
[1728778549345,0.328878,63340.0,63339.0,0.000821]
[1728778550813,0.328878,63340.0,63339.0,0.012821]
[1728778551049,0.171,63340.0,63339.0,0.012821]
[1728778551266,0.171,63340.0,63339.0,0.025821]
[1728778551476,0.171,63340.0,63339.0,0.04881199]
[1728778551925,0.171,63340.0,63339.0,0.013821]
[1728778552179,0.172,63340.0,63339.0,0.03781199]
[1728778552374,0.172,63340.0,63339.0,0.001821]
[1728778552842,0.173,63340.0,63339.0,0.02481199]
[1728778553061,0.19773589,63340.0,63339.0,0.001821]
[1728778553293,0.35561389,63340.0,63339.0,0.02481199]
[1728778553500,0.35561389,63340.0,63339.0,0.001821]
[1728778557173,0.35561389,63340.0,63339.0,0.02481199]
[1728778557382,0.35561389,63340.0,63339.0,0.001821]
[1728778557597,0.19773589,63340.0,63339.0,0.001821]
[1728778557898,0.24507629,63340.0,63339.0,0.001821]
[1728778557984,0.19773589,63340.0,63339.0,0.001821]
[1728778558194,0.40295429,63340.0,63339.0,0.02481199]
[1728778558847,0.35561389,63340.0,63339.0,0.02481199]
[1728778559272,0.35561389,63340.0,63339.0,0.001821]
[1728778560183,0.4266245,63340.0,63339.0,0.001821]
[1728778560627,0.35561389,63340.0,63339.0,0.001821]
[1728778560838,0.4266245,63340.0,63339.0,0.001821]
[1728778561071,0.5304556,63340.0,63339.0,0.001821]
[1728778561282,0.62513641,63340.0,63339.0,0.001821]
[1728778564138,0.46725841,63340.0,63339.0,0.001821]
[1728778564382,0.46738226,63340.0,63339.0,0.001821]
[1728778564592,0.62526026,63340.0,63339.0,0.02485025]
[1728778565250,0.62526026,63340.0,63339.0,0.001821]
[1728778567220,0.53050464,63340.0,63339.0,0.001821]
[1728778567460,0.50576875,63340.0,63339.0,0.001821]
[1728778568131,0.62421328,63340.0,63339.0,0.001821]
[1728778568349,0.7396512,63340.0,63339.0,0.001821]
[1728778569290,0.50476875,63340.0,63339.0,0.001821]
[1728778569520,0.50576875,63340.0,63339.0,0.007821]
[1728778569751,0.50476875,63340.0,63339.0,0.006821]
[1728778569978,0.50376875,63340.0,63339.0,0.001821]
[1728778570200,0.50376875,63340.0,63339.0,0.000821]
[1728778570689,0.5285062,63340.0,63339.0,0.000821]
[1728778570914,0.157878,63340.0,63339.0,0.000821]
[1728778571140,0.18261543,63340.0,63339.0,0.000821]
[1728778571380,0.18261543,63340.0,63339.0,0.003821]
[1728778571860,0.18261543,63340.0,63339.0,0.001821]
[1728778572078,0.18361543,63340.0,63339.0,0.006821]
[1728778572296,0.18461543,63340.0,63339.0,0.007821]
[1728778573986,0.36221543,63340.0,63339.0,0.007821]
[1728778580435,0.40956146,63340.0,63339.0,0.007821]
[1728778581182,0.45692365,63340.0,63339.0,0.007821]
[1728778581412,0.36221543,63340.0,63339.0,0.007821]
[1728778582110,0.45692365,63340.0,63339.0,0.007821]
[1728778583721,0.43218622,63340.0,63339.0,0.007821]
[1728778585575,0.337478,63340.0,63339.0,0.007821]
[1728778585782,0.60264644,63340.0,63339.0,0.007821]
[1728778585996,0.62738408,63340.0,63339.0,0.007821]
[1728778589306,0.53267919,63340.0,63339.0,0.007821]
[1728778589725,0.62741343,63340.0,63339.0,0.007821]
[1728778589976,0.53267919,63340.0,63339.0,0.007821]
[1728778590621,0.53282857,63340.0,63339.0,0.007821]
[1728778592423,0.65125885,63340.0,63339.0,0.007821]
[1728778592850,0.53282857,63340.0,63339.0,0.007821]
[1728778593283,0.65125885,63340.0,63339.0,0.007821]
[1728778594848,0.65133397,63340.0,63339.0,0.007821]
[1728778595337,0.65134534,63340.0,63339.0,0.007821]
[1728778595590,0.49346891,63340.0,63339.0,0.007821]
[1728778595784,0.65134691,63340.0,63339.0,0.007821]
[1728778598989,0.53282857,63340.0,63339.0,0.007821]
[1728778600105,0.76452642,63340.0,63339.0,0.007821]
[1728778601055,0.76452642,63340.0,63339.0,0.001821]
[1728778601056,0.76352642,63340.0,63339.0,0.001821]
[1728778601296,0.76252642,63340.0,63339.0,0.000821]
[1728778601510,0.76252642,63340.0,63339.0,0.005821]
[1728778601731,0.76352642,63340.0,63339.0,0.006821]
[1728778601938,0.76352642,63340.0,63339.0,0.005821]
[1728778602152,0.76452642,63340.0,63339.0,0.006821]
[1728778602598,0.62899641,63340.0,63339.0,0.005821]
[1728778602818,0.62899641,63340.0,63339.0,0.001821]
[1728778602819,0.62999641,63340.0,63339.0,0.001821]
[1728778603293,0.63099641,63340.0,63339.0,0.006821]
[1728778603735,0.62999641,63340.0,63339.0,0.001821]
[1728778604013,0.62999641,63340.0,63339.0,0.005821]
[1728778604701,0.62985754,63340.0,63339.0,0.005821]
[1728778607655,0.6051199,63340.0,63339.0,0.005821]
[1728778608330,0.50695206,63340.0,63339.0,0.005821]
[1728778608586,0.32935206,63340.0,63339.0,0.005821]
[1728778608820,0.17147406,63340.0,63339.0,0.005821]
[1728778609074,0.32935206,63340.0,63339.0,0.005821]
[1728778609287,0.3295,63340.0,63339.0,0.005821]
[1728778610409,0.171622,63340.0,63339.0,0.163701]
[1728778610660,0.1963596,63340.0,63339.0,0.163701]
[1728778610867,0.1963596,63340.0,63339.0,0.18680891]
[1728778611305,0.29121297,63340.0,63339.0,0.18680891]
[1728778611740,0.1963596,63340.0,63339.0,0.18680891]
[1728778612221,0.29121221,63340.0,63339.0,0.18680891]
[1728778613376,0.1963596,63340.0,63339.0,0.18680891]
[1728778613846,0.19683478,63340.0,63339.0,0.02892891]
[1728778617317,0.31539865,63340.0,63339.0,0.02892891]
[1728778617543,0.29066105,63340.0,63339.0,0.02892891]
[1728778617753,0.17209718,63340.0,63339.0,0.02892891]
[1728778618408,0.32997518,63340.0,63339.0,0.02892891]
[1728778618903,0.44853905,63340.0,63339.0,0.005821]
[1728778619360,0.32997518,63340.0,63339.0,0.005821]
[1728778619762,0.44853905,63340.0,63339.0,0.005821]
[1728778620023,0.32997518,63340.0,63339.0,0.005821]
[1728778620482,0.35471254,63340.0,63339.0,0.005821]
[1728778620724,0.47327641,63340.0,63339.0,0.005821]
[1728778621160,0.35471254,63340.0,63339.0,0.005821]
[1728778621870,0.47327641,63340.0,63339.0,0.005821]
[1728778622310,0.35471254,63340.0,63339.0,0.005821]
[1728778622541,0.47327641,63340.0,63339.0,0.005821]
[1728778622796,0.35471254,63340.0,63339.0,0.005821]
[1728778623026,0.55237641,63340.0,63339.0,0.005821]
[1728778623265,0.43381254,63340.0,63339.0,0.005821]
[1728778623908,0.552358,63340.0,63339.0,0.005821]
[1728778624134,0.43381254,63340.0,63339.0,0.005821]
[1728778624360,0.35471254,63340.0,63339.0,0.005821]
[1728778626768,0.35434335,63340.0,63339.0,0.005821]
[1728778627706,0.32960599,63340.0,63339.0,0.005821]
[1728778628355,0.40710599,63340.0,63339.0,0.005821]
[1728778629966,0.32960599,63340.0,63339.0,0.005821]
[1728778630647,0.35434394,63340.0,63339.0,0.005821]
[1728778631583,0.35423901,63340.0,63339.0,0.005821]
[1728778633680,0.43673901,63340.0,63339.0,0.005821]
[1728778637450,0.41200106,63340.0,63339.0,0.005821]
[1728778640470,0.43673919,63340.0,63339.0,0.005821]
[1728778641401,0.63150703,63340.0,63339.0,0.005821]
[1728778647378,0.6067689,63340.0,63339.0,0.005821]
[1728778650555,0.63150709,63340.0,63339.0,0.005821]
[1728778657606,0.6067689,63340.0,63339.0,0.005821]
[1728778658471,0.50860106,63340.0,63339.0,0.005821]
[1728778659792,0.50861401,63340.0,63339.0,0.005821]
[1728778660476,0.53335221,63340.0,63339.0,0.005821]
[1728778664375,0.315771,63338.0,63331.0,0.14372]
[1728778664593,0.07118811,63332.0,63331.0,0.14372]
[1728778664808,0.07118811,63332.0,63331.0,0.14866559]
[1728778665257,0.09592704,63332.0,63331.0,0.14866559]
[1728778666620,0.09592704,63332.0,63331.0,0.15466559]
[1728778666840,0.09592704,63332.0,63331.0,0.15548659]
[1728778667291,0.09692704,63332.0,63331.0,0.14948659]
[1728778667538,0.09792704,63332.0,63331.0,0.15548659]
[1728778669363,0.09793593,63332.0,63331.0,0.15548659]
[1728778671145,0.09793593,63332.0,63331.0,0.01176659]
[1728778671358,0.09793593,63332.0,63331.0,0.03126079]
[1728778671620,0.19709951,63332.0,63331.0,0.006821]
[1728778671862,0.31576119,63332.0,63331.0,0.006821]
[1728778672316,0.19709951,63332.0,63331.0,0.0263152]
[1728778673250,0.29202019,63332.0,63331.0,0.0263152]
[1728778673886,0.26728126,63332.0,63331.0,0.0263152]
[1728778674101,0.26728126,63332.0,63331.0,0.03126097]
[1728778674102,0.17252468,63332.0,63331.0,0.03126097]
[1728778674318,0.17252468,63332.0,63331.0,0.0263152]
[1728778674759,0.26744109,63332.0,63331.0,0.031261]
[1728778675215,0.17252468,63332.0,63331.0,0.0263152]
[1728778677236,0.47380918,63332.0,63331.0,0.0263152]
[1728778677681,0.47380918,63332.0,63331.0,0.006821]
[1728778678149,0.35516185,63332.0,63331.0,0.006821]
[1728778678583,0.35521271,63332.0,63331.0,0.006821]
[1728778678815,0.35685471,63332.0,63331.0,0.006821]
[1728778679731,0.47549186,63332.0,63331.0,0.006821]
[1728778679942,0.45075269,63332.0,63331.0,0.006821]
[1728778680402,0.33211554,63332.0,63331.0,0.006821]
[1728778681150,0.45075269,63332.0,63331.0,0.006821]
[1728778681385,0.33211554,63332.0,63331.0,0.02632413]
[1728778681590,0.33211554,63332.0,63331.0,0.006821]
[1728778681809,0.35675059,63332.0,63331.0,0.006821]
[1728778683433,0.35675059,63332.0,63331.0,0.02632413]
[1728778683640,0.35675059,63332.0,63331.0,0.006821]
[1728778683848,0.35675059,63332.0,63331.0,0.02632413]
[1728778684071,0.35675059,63332.0,63331.0,0.006821]
[1728778684279,0.35675059,63332.0,63331.0,0.02632413]
[1728778684495,0.35675059,63332.0,63331.0,0.006821]
[1728778684725,0.35675059,63332.0,63331.0,0.02632413]
[1728778684953,0.35675059,63332.0,63331.0,0.006821]
[1728778685175,0.35675059,63332.0,63331.0,0.02632413]
[1728778685428,0.19885259,63332.0,63331.0,0.006821]
[1728778685668,0.29375542,63332.0,63331.0,0.18422413]
[1728778685915,0.29375542,63332.0,63331.0,0.164721]
[1728778686161,0.19885259,63332.0,63331.0,0.18423142]
[1728778686641,0.19871799,63332.0,63331.0,0.18423142]
[1728778687117,0.19871799,63332.0,63331.0,0.18917713]
[1728778687340,0.17397868,63332.0,63331.0,0.18917713]
[1728778690145,0.19871728,63332.0,63331.0,0.18917713]
[1728778691069,0.19871728,63332.0,63331.0,0.03127713]
[1728778693284,0.19871728,63332.0,63331.0,0.18917713]
[1728778693727,0.0283806,63332.0,63331.0,0.18917713]
[1728778694410,0.09955638,63332.0,63331.0,0.18917713]
[1728778700682,0.09955638,63332.0,63331.0,0.18423142]
[1728778700893,0.09955638,63332.0,63331.0,0.18917702]
[1728778701649,0.09955638,63332.0,63331.0,0.28734486]
[1728778701882,0.003642,63332.0,63331.0,0.38274486]
[1728778702095,0.003642,63332.0,63331.0,0.45814486]
[1728778703855,0.02838006,63332.0,63331.0,0.45814486]
[1728778704312,0.02838006,63332.0,63331.0,0.45814481]
[1728778704736,0.003642,63332.0,63331.0,0.45814481]
[1728778705232,0.003642,63332.0,63331.0,0.35997697]
[1728778707653,0.02838013,63332.0,63331.0,0.35997697]
[1728778707883,0.02838013,63332.0,63331.0,0.35503142]
[1728778708110,0.02838013,63332.0,63331.0,0.35997697]
[1728778711516,0.02838013,63332.0,63331.0,0.35503142]
[1728778711736,0.02838013,63332.0,63331.0,0.35997697]
[1728778714327,0.07582056,63332.0,63331.0,0.35997697]
[1728778717439,0.05108243,63332.0,63331.0,0.35997697]
[1728778717870,0.05108243,63332.0,63331.0,0.28457697]
[1728778718314,0.003642,63332.0,63331.0,0.28457697]
[1728778721667,0.003642,63332.0,63331.0,0.38274481]
[1728778724319,0.003642,63332.0,63331.0,0.37779926]
[1728778724541,0.003642,63332.0,63331.0,0.18917697]
[1728778731745,0.02838039,63332.0,63331.0,0.18917697]
[1728778732175,0.02838039,63332.0,63331.0,0.19708985]
[1728778734694,0.09954213,63332.0,63331.0,0.18917697]
[1728778737320,0.07480374,63332.0,63331.0,0.189177]
[1728778738623,0.003642,63332.0,63331.0,0.189177]
[1728778740663,0.0283806,63332.0,63331.0,0.189177]
[1728778746748,0.19888154,63332.0,63331.0,0.189177]
[1728778747379,0.17414294,63332.0,63331.0,0.189177]
[1728778747602,0.17414294,63332.0,63331.0,0.18423142]
[1728778747818,0.17414294,63332.0,63331.0,0.189177]
[1728778751525,0.1741129,63332.0,63331.0,0.189177]
[1728778755656,0.1741129,63332.0,63331.0,0.18917702]
[1728778756370,0.17404156,63332.0,63331.0,0.18917702]
[1728778761678,0.19878024,63332.0,63331.0,0.18917702]
[1728778762988,0.19878024,63332.0,63331.0,0.18423142]
[1728778763192,0.19878024,63332.0,63331.0,0.18917702]
[1728778765140,0.19878024,63332.0,63331.0,0.03127702]
[1728778765363,0.45167824,63332.0,63331.0,0.03127702]
[1728778765576,0.53347824,63332.0,63331.0,0.0117666]
[1728778765815,0.53347824,63332.0,63331.0,0.006821]
[1728778767356,0.62735157,63332.0,63331.0,0.006821]
[1728778767575,0.50873956,63332.0,63331.0,0.006821]
[1728778768006,0.62734956,63332.0,63331.0,0.006821]
[1728778769335,0.53347926,63332.0,63331.0,0.006821]
[1728778769765,0.65206796,63332.0,63331.0,0.006821]
[1728778770615,0.6506613,63332.0,63331.0,0.006821]
[1728778772832,0.53208345,63332.0,63331.0,0.006821]
[1728778773255,0.6506613,63332.0,63331.0,0.006821]
[1728778773682,0.6506613,63332.0,63331.0,0.02658778]
[1728778773895,0.6506613,63332.0,63331.0,0.006821]
[1728778774112,0.6506613,63332.0,63331.0,0.02658778]
[1728778774320,0.53208345,63332.0,63331.0,0.006821]
[1728778774532,0.53208345,63332.0,63331.0,0.02658778]
[1728778774741,0.53208345,63332.0,63331.0,0.006821]
[1728778775176,0.53208345,63332.0,63331.0,0.02658778]
[1728778777397,0.50734375,63332.0,63331.0,0.02658778]
[1728778780148,0.50730676,63332.0,63331.0,0.02658778]
[1728778780360,0.53204615,63332.0,63331.0,0.02658778]
[1728778780625,0.37414815,63332.0,63331.0,0.02658778]
[1728778781261,0.53204615,63332.0,63331.0,0.02658778]
[1728778781685,0.37414815,63332.0,63331.0,0.02658778]
[1728778782260,0.53204615,63332.0,63331.0,0.02658778]
[1728778784486,0.53104615,63332.0,63331.0,0.02058778]
[1728778784907,0.37414815,63332.0,63331.0,0.02558778]
[1728778785361,0.37314815,63332.0,63331.0,0.02058778]
[1728778785651,0.37414815,63332.0,63331.0,0.02558778]
[1728778785855,0.37314815,63332.0,63331.0,0.02558778]
[1728778786063,0.37414815,63332.0,63331.0,0.02558778]
[1728778786666,0.37514815,63332.0,63331.0,0.02558778]
[1728778787809,0.53304615,63332.0,63331.0,0.02558778]
[1728778788481,0.37514815,63332.0,63331.0,0.02558778]
[1728778789772,0.37550946,63332.0,63331.0,0.02558778]
[1728778789995,0.53340746,63332.0,63331.0,0.02558778]
[1728778790273,0.6519023,63332.0,63331.0,0.02558778]
[1728778790527,0.63340746,63332.0,63331.0,0.02558778]
[1728778790738,0.63340746,63332.0,63331.0,0.005821]
[1728778791163,0.60866807,63332.0,63331.0,0.005821]
[1728778791587,0.60866807,63332.0,63331.0,0.000821]
[1728778791800,0.60766807,63332.0,63331.0,0.000821]
[1728778792040,0.61166807,63332.0,63331.0,0.000821]
[1728778792255,0.60966807,63332.0,63331.0,0.000821]
[1728778792720,0.60766807,63332.0,63331.0,0.000821]
[1728778792958,0.61066807,63332.0,63331.0,0.000821]
[1728778793666,0.61366807,63332.0,63331.0,0.000821]
[1728778794140,0.64341203,63332.0,63331.0,0.000821]
[1728778794398,0.64541203,63332.0,63331.0,0.000821]
[1728778795051,0.67015672,63332.0,63331.0,0.000821]
[1728778795534,0.67733819,63332.0,63331.0,0.000821]
[1728778795804,0.67533819,63332.0,63331.0,0.000821]
[1728778796285,0.67733819,63332.0,63331.0,0.000821]
[1728778797247,0.8387079,63332.0,63331.0,0.000821]
[1728778797472,0.78921925,63332.0,63331.0,0.000821]
[1728778799072,0.78987656,63332.0,63331.0,0.000821]
[1728778800440,0.81462127,63332.0,63331.0,0.000821]
[1728778802600,0.81454075,63332.0,63331.0,0.000821]
[1728778802826,0.157927,63320.0,63319.0,0.24245185]
[1728778803045,0.32705313,63320.0,63319.0,0.24245185]
[1728778803286,0.82705313,63320.0,63319.0,0.0063262]
[1728778803545,0.78084222,63320.0,63319.0,0.0013262]